[Event "44th Chess Olympiad Women 2022"]
[Site "Chennai"]
[Date "2022.08.06"]
[Round "8.7"]
[White "Gara, Ticia"]
[Black "Bayarmaa, Bayarjargal"]
[Result "1-0"]
[WhiteElo "2367"]
[BlackElo "2171"]
[Annotator "TA"]
[PlyCount "157"]
[EventDate "2022.??.??"]
[TimeControl "60"]

{[%evp 18,157,39,41,36,40,37,33,36,38,64,56,68,77,68,45,74,55,80,58,60,60,58,
58,65,67,82,62,66,54,60,62,94,77,90,67,105,102,113,112,106,0,110,0,112,105,149,
149,149,149,149,149,149,149,149,149,149,0,149,0,149,149,149,149,149,149,225,
177,616,612,840,556,595,556,545,482,552,548,523,506,470,441,595,595,595,595,
572,538,522,475,595,572,565,517,509,500,491,454,1571,1456,1010,1509,1442,1354,
1323,1269,1013,998,941,880,848,816,5281,6705,29957,29966,29962,29966,29955,
29963,29961,29967,29967,29966,29989,12829,29988,29988,29988,29989,29990,29988,
29988,29989,29989,29989,29989,29990,29990,29991,29991,29992]} 1. Nf3 {[%emt 0:
00:00]} Nf6 {[%emt 0:00:12]} 2. g3 {[%emt 0:00:13]} g6 {[%emt 0:00:07]} 3. b3 {
[%emt 0:00:12]} Bg7 {[%emt 0:00:06]} 4. Bb2 {[%emt 0:00:04]} d6 {[%emt 0:01:55]
} 5. d4 {[%emt 0:01:23]} Nbd7 {[%emt 0:03:33]} 6. Bg2 {[%emt 0:00:24]} c5 {
[%emt 0:00:16]} 7. c4 {[%emt 0:02:27]} a6 {[%emt 0:00:59]} 8. Nc3 {[%emt 0:00:
00]} O-O {[%emt 0:01:23]} 9. O-O {[%emt 0:00:24]} Rb8 {[%emt 0:04:05]} 10. a4 {
[%emt 0:00:23]} b6 {[%emt 0:05:50] E65: King's Indian: Fianchetto: 6...c5 7
0-0 without d5 by White.} 11. d5 {[%emt 0:02:53]} Ne4 {[%emt 0:03:05]} 12. Qc2
{[%emt 0:00:29]} Nxc3 {[%emt 0:03:35] White is slightly better.} 13. Bxc3 {
[%emt 0:00:07] [#]} Qc7 $146 {[%emt 0:05:29]} ({Predecessor:} 13... Nf6 14. e4
b5 15. axb5 axb5 16. e5 Bf5 17. Qe2 Ne4 18. Ba5 Qd7 19. g4 Bxg4 20. Qxe4 Bxf3
21. Qxf3 Bxe5 {1-0 (70) Ladva,O (2497)-Narva,T (2103) Puhajarve 2018}) 14. Nd2
{[%emt 0:06:30] 0x0.00198aaafcdcdp-1022s more active pieces. The black rooks
are badly placed.} f5 {[%emt 0:11:43]} 15. Bxg7 {[%emt 0:05:40]} Kxg7 {[%emt 0:
00:00]} 16. Qc3+ {[%emt 0:00:25]} (16. Rfe1 {looks sharper.} b5 17. cxb5 axb5
18. a5) 16... Kg8 {[%emt 0:01:00]} 17. e4 {[%emt 0:06:09]} Nf6 {[%emt 0:04:42]}
18. Rfe1 {[%emt 0:16:54]} fxe4 {[%emt 0:01:43]} 19. Nxe4 {[%emt 0:00:20]} Nxe4
{[%emt 0:03:33]} 20. Rxe4 {[%emt 0:03:52]} Bf5 {[%emt 0:01:21]} 21. Re3 {
[%emt 0:02:20]} Qd8 {[%emt 0:01:48]} 22. Rae1 {[%emt 0:02:55]} Rf7 {[%emt 0:00:
00]} 23. Bf1 {[%emt 0:04:53][%cal Yg2f1,Yf1d3,Yd3e2]} Qf8 {[%emt 0:00:00]} 24.
f4 {[%emt 0:13:02]} a5 {[%emt 0:01:02]} 25. h4 {[%emt 0:04:14]} Rb7 {[%emt 0:
02:43]} 26. Kh2 {[%emt 0:01:28]} Qc8 {[%emt 0:05:41]} 27. Bd3 {[%emt 0:00:00]}
Bg4 {[%emt 0:05:03]} 28. Be2 {[%emt 0:00:33]} Bf5 {[%emt 0:06:40]} 29. Bd3 {
[%emt 0:00:05]} Bg4 {[%emt 0:00:06]} 30. Be2 {[%emt 0:00:04]} Bf5 $1 {[%emt 0:
00:07]} 31. Bf3 {[%emt 0:00:13]} Bg4 {[%emt 0:02:10]} 32. Bxg4 {[%emt 0:04:00]}
Qxg4 {[%emt 0:00:05]} 33. Re4 {[%emt 0:04:19]} Qf5 {[%emt 0:00:00]} 34. R1e2 {
[%emt 0:05:21]} Rc7 {[%emt 0:02:34]} 35. Re6 {[%emt 0:02:30]} Qg4 {[%emt 0:01:
36]} 36. Qe1 {[%emt 0:02:13]} Kf8 {[%emt 0:00:49]} 37. Qc3 {[%emt 0:00:24]
[%cal Rc3h8] [#]} Kg8 {[%emt 0:00:25] Prevents Qh8+.} 38. Qe1 {[%emt 0:00:37]}
Kf8 $1 {[%emt 0:00:08]} 39. R2e4 {[%emt 0:00:44]} Qf3 {[%emt 0:00:00]} 40. Re3
{[%emt 0:00:31]} Qh5 {[%emt 0:00:45]} 41. Qe2 {[%emt 0:33:21]} Qh6 {[%emt 0:35:
03]} (41... Qf5 $16 {keeps fighting.} 42. R3e4 Rg7) 42. Kh3 $40 {[%emt 0:00:00]
White has strong attack.} Qg7 $2 {[%emt 0:00:00] [#]} (42... Rd7 43. Qe1 Qg7)
43. Rxd6 $3 $18 {[%emt 0:00:00][%cal Rd6d8]} Qa1 {[%emt 0:00:00]} (43... Rc8
44. Rxb6) 44. Rd8+ {[%emt 0:00:00]} Kg7 {[%emt 0:00:00]} 45. Qe1 {[%emt 0:00:
00] Against Qh1+} Qf6 {[%emt 0:00:00]} 46. Qc3 {[%emt 0:00:00] Against e5} Qxc3
{[%emt 0:00:00]} 47. Rxc3 {[%emt 0:00:00] Endgame KRR-KRR} Rf6 {[%emt 0:00:00]}
48. Re3 {[%emt 0:00:00]} Rb7 {[%emt 0:00:00]} 49. Re4 {[%emt 0:00:00]} h5 {
[%emt 0:00:00]} 50. Kg2 {[%emt 0:00:00]} Kf7 {[%emt 0:00:00]} 51. Kf3 {[%emt 0:
00:00]} Rc7 {[%emt 0:00:00]} 52. Rb8 {[%emt 0:00:00]} Rd7 {[%emt 0:00:00]} 53.
Re5 {[%emt 0:00:00]} Kg7 {[%emt 0:00:00]} 54. Ke4 {[%emt 0:00:00]} Kf7 {
[%emt 0:00:00]} 55. f5 {[%emt 0:00:00]} Kg7 {[%emt 0:00:53]} 56. fxg6 {[%emt 0:
00:00]} Rxg6 {[%emt 0:00:22]} 57. Rxh5 {[%emt 0:00:00] Threatens to win with
Rhh8.} e6 {[%emt 0:02:38]} (57... Rxg3 $142 58. Rxb6 Rh3) 58. Rg5 {[%emt 0:01:
59]} exd5+ {[%emt 0:00:26]} 59. cxd5 {[%emt 0:00:07]} Re7+ {[%emt 0:00:10]} 60.
Kf5 {[%emt 0:02:28]} Rf7+ {[%emt 0:00:10]} 61. Kg4 {[%emt 0:00:43]} Rxg5+ {
[%emt 0:01:04]} 62. Kxg5 {[%emt 0:00:19] Strongly threatening d6. KR-KR} Rd7 {
[%emt 0:00:05]} 63. Rxb6 {[%emt 0:00:46] d6 is the strong threat.} Rxd5+ {
[%emt 0:00:04]} 64. Kf4 {[%emt 0:01:06]} c4 {[%emt 0:01:01]} 65. bxc4 {[%emt 0:
02:22]} Rd4+ {[%emt 0:00:00]} 66. Kg5 {[%emt 0:00:07]} Rxc4 {[%emt 0:00:05]}
67. Rb7+ {[%emt 0:00:04]} Kg8 {[%emt 0:00:24]} 68. g4 {[%emt 0:00:29]} Rxa4 {
[%emt 0:00:09]} 69. Ra7 {[%emt 0:00:02]} Kh8 {[%emt 0:02:05]} 70. h5 {[%emt 0:
00:28]} Kg8 {[%emt 0:00:00]} 71. Kf5 {[%emt 0:00:17]} (71. h6 $142 Rb4 72. Kh5
Kh8 73. g5 Rb8 74. h7 Ra8 75. Rxa8+ Kxh7 76. Rxa5) 71... Kh8 {[%emt 0:13:25]}
72. g5 {[%emt 0:00:16] White mates.} Kg8 {[%emt 0:00:28]} 73. Kg6 {[%emt 0:00:
18][%cal Ra7a8]} Rf4 {[%emt 0:01:57]} 74. Ra8+ {[%emt 0:00:15]} Rf8 {[%emt 0:
00:05]} 75. Rxf8+ {[%emt 0:00:30]} Kxf8 {[%emt 0:00:05]} 76. Kh7 {[%emt 0:00:
12]} a4 {[%emt 0:00:00]} 77. g6 {[%emt 0:00:04]} a3 {[%emt 0:00:03]} 78. g7+ {
[%emt 0:00:04]} Ke7 {[%emt 0:00:04]} 79. g8=Q {[%emt 0:00:14] Weighted Error
Value: White=0.19 (very precise) /Black=0.30} 1-0

[Event "44th Chess Olympiad Women 2022"]
[Site "Chennai"]
[Date "2022.08.06"]
[Round "8.7"]
[White "Munkhzul, Turmunkh"]
[Black "Gaal, Zsoka"]
[Result "1-0"]
[WhiteElo "2277"]
[BlackElo "2313"]
[Annotator "RC"]
[PlyCount "119"]
[EventDate "2022.??.??"]
[TimeControl "60"]

1. e4 {[%emt 0:00:08]} c6 {[%emt 0:00:15]} 2. d4 {[%emt 0:00:09]} d5 {[%emt 0:
00:00]} 3. exd5 {[%emt 0:00:21]} cxd5 {[%emt 0:00:05]} 4. c4 {[%emt 0:00:50]}
Nf6 {[%emt 0:01:41]} 5. Nc3 {[%emt 0:00:23]} Nc6 {[%emt 0:00:37]} 6. Bg5 {
[%emt 0:00:32]} Be6 {[%emt 0:07:36]} 7. a3 {[%emt 0:02:58]} h6 {[%emt 0:15:06]}
8. Bxf6 {[%emt 0:03:12]} exf6 {[%emt 0:00:30]} 9. cxd5 {[%emt 0:00:50]} Bxd5 {
[%emt 0:00:51]} 10. Qe2+ {[%emt 0:00:14]} Ne7 {[%emt 0:03:44]} 11. Nxd5 {
[%emt 0:01:00]} Qxd5 {[%emt 0:03:49]} 12. Qb5+ {[%emt 0:00:26]} Qd7 {[%emt 0:
00:00]} 13. Qxd7+ {[%emt 0:01:46]} Kxd7 {[%emt 0:00:06]} 14. Bb5+ {[%emt 0:00:
00]} Kd6 {[%emt 0:02:33]} 15. Ne2 {[%emt 0:02:22]} f5 {[%emt 0:07:38]} 16. Nc3
{[%emt 0:02:40]} Nd5 {[%emt 0:07:14]} 17. Ba4 {[%emt 0:06:09]} Nc7 {[%emt 0:00:
00]} 18. O-O-O {[%emt 0:01:18]} Be7 {[%emt 0:01:32]} 19. Rhe1 {[%emt 0:08:35]}
h5 {[%emt 0:01:10]} 20. Bb3 {[%emt 0:04:05]} Rhf8 {[%emt 0:02:38]} 21. Re5 {
[%emt 0:01:35]} g6 {[%emt 0:03:11]} 22. Kb1 {[%emt 0:02:29]} Rad8 {[%emt 0:00:
00]} 23. Rc1 {[%emt 0:14:56]} Bg5 {[%emt 0:00:49]} 24. Rc2 {[%emt 0:00:26]} a6
{[%emt 0:01:00]} 25. g3 {[%emt 0:11:48]} Bf6 {[%emt 0:05:05]} 26. Nd5 {[%emt 0:
00:00]} Bxe5 {[%emt 0:02:08]} 27. dxe5+ {[%emt 0:00:09]} Kxe5 {[%emt 0:00:27]}
28. Nxc7 {[%emt 0:01:00]} Rd1+ {[%emt 0:03:15]} 29. Ka2 {[%emt 0:00:20]} Kd6 {
[%emt 0:00:50]} 30. Re2 {[%emt 0:00:10]} Rd4 {[%emt 0:03:25]} 31. Ne8+ {
[%emt 0:00:20]} Kc6 {[%emt 0:01:19]} 32. Nf6 {[%emt 0:05:46]} h4 {[%emt 0:00:
00]} 33. Rc2+ {[%emt 0:01:57]} Kb6 {[%emt 0:00:47]} 34. Nh7 {[%emt 0:04:27]}
Rh8 {[%emt 0:00:28]} 35. Ng5 {[%emt 0:00:00]} hxg3 {[%emt 0:01:04]} 36. hxg3 {
[%emt 0:00:00]} f6 {[%emt 0:02:41]} 37. Nf3 {[%emt 0:00:27]} Rd3 {[%emt 0:00:
00]} 38. Nh4 {[%emt 0:00:25]} Rh6 {[%emt 0:01:09]} 39. Bc4 {[%emt 0:02:53]} Rd4
{[%emt 0:01:45]} 40. Bf7 {[%emt 0:02:41]} f4 {[%emt 0:00:50]} 41. Nxg6 {
[%emt 0:30:31]} fxg3 {[%emt 0:05:35]} 42. fxg3 {[%emt 0:00:00]} Rd7 {[%emt 0:
00:00]} 43. Be6 {[%emt 0:00:00]} Rg7 {[%emt 0:01:20]} 44. Nh4 {[%emt 0:00:00]}
Rh8 {[%emt 0:01:45]} 45. Nf5 {[%emt 0:00:00]} Rg5 {[%emt 0:00:25]} 46. Nd6 {
[%emt 0:00:00]} Rc5 {[%emt 0:06:50]} 47. Rxc5 {[%emt 0:00:00]} Kxc5 {[%emt 0:
00:00]} 48. Nxb7+ {[%emt 0:00:00]} Kc6 {[%emt 0:00:08]} 49. Na5+ {[%emt 0:00:
00]} Kb5 {[%emt 0:00:12]} 50. b4 {[%emt 0:00:00]} Rd8 {[%emt 0:00:30]} 51. Bf5
{[%emt 0:00:00]} Rd5 {[%emt 0:02:44]} 52. g4 {[%emt 0:00:00]} Rd4 {[%emt 0:00:
00]} 53. Kb3 {[%emt 0:00:00]} Rd1 {[%emt 0:00:20]} 54. Nc4 {[%emt 0:00:00]} Rd4
{[%emt 0:01:41]} 55. Be4 {[%emt 0:00:00]} a5 {[%emt 0:00:19]} 56. a4+ {[%emt 0:
00:00]} Ka6 {[%emt 0:00:06]} 57. b5+ {[%emt 0:00:00]} Ka7 {[%emt 0:00:04]} 58.
Bf5 {[%emt 0:00:00]} Rd5 {[%emt 0:00:58]} 59. Nxa5 {[%emt 0:00:00]} Kb6 {
[%emt 0:00:29]} 60. Kb4 {[%emt 0:00:00]} 1-0

[Event "44th Chess Olympiad Women 2022"]
[Site "Chennai"]
[Date "2022.08.06"]
[Round "8.7"]
[White "Terbe, Julianna"]
[Black "Mungunzul, Bat-Erdene"]
[Result "0-1"]
[WhiteElo "2291"]
[BlackElo "2163"]
[Annotator "RC"]
[PlyCount "180"]
[EventDate "2022.??.??"]
[TimeControl "60"]

1. Nf3 {[%emt 0:00:02]} d5 {[%emt 0:00:14]} 2. g3 {[%emt 0:00:06]} Nf6 {
[%emt 0:00:15]} 3. Bg2 {[%emt 0:00:05]} Bf5 {[%emt 0:00:25]} 4. O-O {[%emt 0:
00:00]} e6 {[%emt 0:00:27]} 5. c4 {[%emt 0:00:05]} c6 {[%emt 0:00:20]} 6. Qb3 {
[%emt 0:00:05]} Qb6 {[%emt 0:01:15]} 7. d3 {[%emt 0:00:07]} Nbd7 {[%emt 0:00:
00]} 8. cxd5 {[%emt 0:00:24]} exd5 {[%emt 0:02:48]} 9. Qc2 {[%emt 0:00:11]} Be7
{[%emt 0:03:39]} 10. Nc3 {[%emt 0:00:14]} O-O {[%emt 0:02:01]} 11. e4 {[%emt 0:
00:00]} Be6 {[%emt 0:23:11]} 12. Be3 {[%emt 0:05:45]} c5 {[%emt 0:03:52]} 13.
exd5 {[%emt 0:20:13]} Nxd5 {[%emt 0:01:55]} 14. Nxd5 {[%emt 0:00:37]} Bxd5 {
[%emt 0:00:16]} 15. Rfd1 {[%emt 0:07:20]} Qc6 {[%emt 0:07:28]} 16. Ne1 {
[%emt 0:00:30]} Bxg2 {[%emt 0:06:55]} 17. Nxg2 {[%emt 0:00:05]} Ne5 {[%emt 0:
00:00]} 18. Ne1 {[%emt 0:14:30]} Ng4 {[%emt 0:02:42]} 19. d4 {[%emt 0:10:46]}
Qd5 {[%emt 0:04:07]} 20. Qe2 {[%emt 0:10:38]} Qh5 {[%emt 0:00:34]} 21. f3 {
[%emt 0:07:57]} Nxe3 {[%emt 0:02:24]} 22. Qxe3 {[%emt 0:00:04]} Rfe8 {[%emt 0:
00:00]} 23. g4 {[%emt 0:03:10]} Qh3 {[%emt 0:05:13]} 24. dxc5 {[%emt 0:01:10]}
Rac8 {[%emt 0:09:03]} 25. Rd5 {[%emt 0:00:19]} Bf6 {[%emt 0:08:39]} 26. Qd2 {
[%emt 0:04:08]} Rcd8 {[%emt 0:02:40]} 27. Rd1 {[%emt 0:05:18]} h5 {[%emt 0:00:
00]} 28. Rxd8 {[%emt 0:05:40]} Rxd8 {[%emt 0:00:18]} 29. Qe2 {[%emt 0:00:02]}
Rxd1 {[%emt 0:03:38]} 30. Qxd1 {[%emt 0:00:03]} hxg4 {[%emt 0:00:06]} 31. Qd7 {
[%emt 0:04:09]} Qh5 {[%emt 0:00:37]} 32. Qc8+ {[%emt 0:00:50]} Kh7 {[%emt 0:00:
00]} 33. fxg4 {[%emt 0:00:06]} Bd4+ {[%emt 0:01:31]} 34. Kg2 {[%emt 0:00:04]}
Qd5+ {[%emt 0:00:41]} 35. Nf3 {[%emt 0:00:04]} g6 {[%emt 0:00:30]} 36. Qe8 {
[%emt 0:02:11]} Bxb2 {[%emt 0:01:13]} 37. h4 {[%emt 0:00:50]} Kg7 {[%emt 0:00:
00]} 38. Qe2 {[%emt 0:00:27]} Bf6 {[%emt 0:01:19]} 39. g5 {[%emt 0:00:29]} Ba1
{[%emt 0:00:16]} 40. Qc2 {[%emt 0:00:34]} Qe6 {[%emt 0:02:27]} 41. Kg3 {
[%emt 0:03:40]} Qe3 {[%emt 0:02:45]} 42. Qc4 {[%emt 0:05:30]} Bb2 {[%emt 0:00:
00]} 43. Qd5 {[%emt 0:03:07]} Ba3 {[%emt 0:02:09]} 44. Qxb7 {[%emt 0:03:40]}
Bxc5 {[%emt 0:01:13]} 45. Qd5 {[%emt 0:01:13]} Qf2+ {[%emt 0:01:59]} 46. Kg4 {
[%emt 0:02:41]} Qg2+ {[%emt 0:05:09]} 47. Kf4 {[%emt 0:00:04]} Bf2 {[%emt 0:00:
00]} 48. Qe5+ {[%emt 0:05:29]} Kh7 {[%emt 0:00:17]} 49. Qd5 {[%emt 0:03:48]}
Bg3+ {[%emt 0:06:20]} 50. Ke4 {[%emt 0:00:04]} Qe2+ {[%emt 0:00:17]} 51. Kd4 {
[%emt 0:00:04]} Kg7 {[%emt 0:00:17]} 52. Kc5 {[%emt 0:03:27]} Qf2+ {[%emt 0:00:
00]} 53. Qd4+ {[%emt 0:01:45]} Qxd4+ {[%emt 0:01:41]} 54. Kxd4 {[%emt 0:00:04]}
f6 {[%emt 0:00:36]} 55. gxf6+ {[%emt 0:02:10]} Kxf6 {[%emt 0:00:06]} 56. Ke4 {
[%emt 0:00:06]} a6 {[%emt 0:02:05]} 57. a3 {[%emt 0:01:31]} Ke6 {[%emt 0:00:56]
} 58. Ng5+ {[%emt 0:00:39]} Ke7 {[%emt 0:01:57]} 59. Nf3 {[%emt 0:00:24]} Kf6 {
[%emt 0:00:11]} 60. a4 {[%emt 0:00:08]} Ke6 {[%emt 0:00:46]} 61. Ng5+ {[%emt 0:
00:00]} Ke7 {[%emt 0:00:12]} 62. Nf3 {[%emt 0:00:38]} Kf6 {[%emt 0:00:03]} 63.
h5 {[%emt 0:00:30]} gxh5 {[%emt 0:00:18]} 64. Nd4 {[%emt 0:00:07]} Bc7 {
[%emt 0:00:45]} 65. Nb3 {[%emt 0:01:03]} Bd6 {[%emt 0:01:41]} 66. Nd4 {[%emt 0:
00:00]} h4 {[%emt 0:00:30]} 67. Kf3 {[%emt 0:00:27]} h3 {[%emt 0:00:29]} 68.
Nb5 {[%emt 0:00:28]} Be5 {[%emt 0:00:31]} 69. Na7 {[%emt 0:00:35]} Ke6 {
[%emt 0:00:36]} 70. Nc6 {[%emt 0:00:12]} Bd6 {[%emt 0:00:20]} 71. Nd4+ {
[%emt 0:00:18]} Kd5 {[%emt 0:00:23]} 72. Nf5 {[%emt 0:00:24]} Kc5 {[%emt 0:00:
00]} 73. a5 {[%emt 0:01:05]} Bc7 {[%emt 0:01:26]} 74. Ne3 {[%emt 0:00:15]} Kb5
{[%emt 0:00:25]} 75. Nd5 {[%emt 0:00:28]} Bb8 {[%emt 0:00:32]} 76. Ne7 {
[%emt 0:00:10]} Bc7 {[%emt 0:00:32]} 77. Nd5 {[%emt 0:00:08]} Be5 {[%emt 0:00:
00]} 78. Ne3 {[%emt 0:00:08]} Bd6 {[%emt 0:00:32]} 79. Nf5 {[%emt 0:00:35]} Bc7
{[%emt 0:00:24]} 80. Ne7 {[%emt 0:01:10]} Kxa5 {[%emt 0:00:31]} 81. Nd5 {
[%emt 0:00:13]} Bd6 {[%emt 0:00:29]} 82. Kf2 {[%emt 0:00:58]} Ka4 {[%emt 0:00:
00]} 83. Kg1 {[%emt 0:00:46]} Kb3 {[%emt 0:00:49]} 84. Kh1 {[%emt 0:00:16]} a5
{[%emt 0:00:36]} 85. Nb6 {[%emt 0:00:10]} Bc5 {[%emt 0:00:39]} 86. Nd7 {
[%emt 0:00:07]} Bd4 {[%emt 0:00:12]} 87. Nb8 {[%emt 0:00:05]} a4 {[%emt 0:00:
00]} 88. Nc6 {[%emt 0:00:07]} Bc3 {[%emt 0:00:08]} 89. Na7 {[%emt 0:00:30]} a3
{[%emt 0:00:07]} 90. Nb5 {[%emt 0:00:02]} a2 {[%emt 0:00:04]} 0-1

[Event "44th Chess Olympiad Women 2022"]
[Site "Chennai"]
[Date "2022.08.06"]
[Round "8.8"]
[White "Koubova, Anna Marie"]
[Black "Zatonskih, Anna"]
[Result "1-0"]
[WhiteElo "2115"]
[BlackElo "2383"]
[Annotator "TA"]
[PlyCount "131"]
[EventDate "2022.??.??"]
[TimeControl "60"]

{[%evp 9,131,8,22,10,28,20,22,13,13,0,37,33,42,22,22,28,53,49,48,48,49,37,52,
46,52,46,46,47,64,54,120,124,107,110,202,198,233,241,229,236,247,253,256,256,
256,211,206,203,201,191,203,178,206,202,184,161,156,132,166,75,57,0,114,72,202,
141,185,0,219,194,189,0,159,0,182,50,51,40,40,40,52,32,54,54,77,71,66,76,63,8,
16,0,202,172,199,161,357,357,335,324,270,294,557,502,553,523,714,737,575,706,
715,707,698,685,633,509,29980,29981,29981,29982,29987,29988,29988,29988]} 1.
Nf3 {[%emt 0:00:06]} d5 {[%emt 0:00:24]} 2. c4 {[%emt 0:00:14]} e6 {[%emt 0:00:
00]} 3. e3 {[%emt 0:00:14]} Nf6 {[%emt 0:12:21]} 4. Nc3 {[%emt 0:00:13]} a6 {
[%emt 0:08:47]} 5. b3 {[%emt 0:01:08]} c5 {[%emt 0:05:07]} 6. cxd5 {[%emt 0:00:
00] A17: English Opening: 1...Nf6 with ...Bb4.} exd5 {[%emt 0:01:48]} 7. d4 {
[%emt 0:00:59]} Nc6 {[%emt 0:00:22]} 8. Bb2 {[%emt 0:01:58] The position is
equal.} Bg4 {[%emt 0:13:15]} 9. Be2 {[%emt 0:08:09]} cxd4 {[%emt 0:04:05]} (
9... Bxf3 $5 10. Bxf3 cxd4 11. exd4 Bb4 $11) 10. Nxd4 {[%emt 0:02:12]} Bxe2 {
[%emt 0:00:05]} 11. Ndxe2 {[%emt 0:01:56]} Bd6 {[%emt 0:04:37] [#]} 12. Nd4
$146 {[%emt 0:07:28]} (12. Nxd5 $2 Nxd5 13. O-O O-O $1 $19) ({Predecessor:} 12.
Ng3 Qd7 13. Nh5 Nxh5 14. Qxh5 Be5 15. Rd1 Rd8 16. O-O Qe6 17. Rd2 O-O 18. Rfd1
{0-1 (31) Pandurevic,M (2259)-Zaja,I (2417) Omis 2003}) 12... Rc8 {[%emt 0:00:
00]} 13. Nf5 {[%emt 0:06:02]} O-O {[%emt 0:08:02]} 14. Nxd6 {[%emt 0:01:56]} (
14. Nxd5 Nxd5 15. O-O Re8 $1 16. Nxg7 Re5 $1 $11) 14... Qxd6 {[%emt 0:00:06]}
15. O-O {[%emt 0:02:05]} Rfd8 {[%emt 0:02:33]} 16. Ne2 $1 {[%emt 0:02:39][%cal
Yc3e2,Ye2g3,Yg3f5] Inhibits d4.} Ng4 {[%emt 0:00:00][%csl Gg4][%cal Rd6h2]} 17.
Ng3 {[%emt 0:07:11]} Qg6 {[%emt 0:02:20]} 18. Rc1 {[%emt 0:05:12]} h5 {[%emt 0:
02:21]} 19. Qf3 {[%emt 0:06:15]} Re8 {[%emt 0:00:00]} ({Better is} 19... Nge5
$14 20. Bxe5 (20. Qxh5 Qxh5 21. Nxh5 Nd3 $14) 20... Nxe5 21. Qxh5 Qxh5 22. Nxh5
Nc6) 20. Qxd5 $16 {[%emt 0:10:16]} h4 {[%emt 0:00:42]} 21. Nf5 {[%emt 0:11:40]}
Re5 {[%emt 0:02:17]} 22. Rxc6 $1 $18 {[%emt 0:12:32]} (22. Bxe5 Qxf5 23. h3
Ngxe5 $11) 22... bxc6 {[%emt 0:00:55]} (22... Rxd5 $2 23. Ne7+ (23. Rxc8+ Kh7
$15) 23... Kh7 24. Rxg6 (24. Nxg6 Rxc6 25. Ne7 Rc2 $11) 24... fxg6 25. Nxd5 $18
) 23. Qxe5 {[%emt 0:00:46] Remove Defender. Dancing on a razor blade.} Nxe5 {
[%emt 0:00:56]} 24. Ne7+ {[%emt 0:00:06]} Kf8 {[%emt 0:01:00]} 25. Nxg6+ {
[%emt 0:00:11]} Nxg6 {[%emt 0:00:00] Endgame KRB-KRN} 26. Rd1 {[%emt 0:00:34]
Prevents Rd8.} c5 {[%emt 0:00:34]} 27. Ba3 {[%emt 0:02:32]} Ke8 {[%emt 0:00:10]
} 28. Rc1 {[%emt 0:00:00]} Rd8 {[%emt 0:01:05]} 29. Bxc5 {[%emt 0:00:50]} Rd2 {
[%emt 0:00:04]} 30. a4 {[%emt 0:00:11]} Ne5 {[%emt 0:00:37]} 31. Bd4 {[%emt 0:
00:48]} Nd3 {[%emt 0:00:00]} 32. Rf1 {[%emt 0:00:42]} f6 {[%emt 0:00:28]} 33.
h3 {[%emt 0:00:12]} Kd7 {[%emt 0:00:15]} 34. Bc3 {[%emt 0:00:51]} (34. f3 $18)
34... Rc2 $16 {[%emt 0:00:05]} 35. Bd4 {[%emt 0:00:15]} (35. Ba1 $14) 35... Ke6
{[%emt 0:00:00]} (35... Rd2 $1 $11) 36. f3 {[%emt 0:00:51]} g5 {[%emt 0:00:55]}
(36... Nc1 $16) 37. Kh2 {[%emt 0:00:20]} Re2 {[%emt 0:00:20]} 38. Kg1 $2 {
[%emt 0:00:42]} (38. Rb1 $18) 38... Rd2 $2 {[%emt 0:00:29]} (38... Rc2 $1 $11)
39. Kh1 {[%emt 0:00:35]} Rc2 {[%emt 0:02:10]} 40. Kh2 {[%emt 0:00:16]} Re2 $1 {
[%emt 0:00:00]} 41. Kg1 {[%emt 0:15:15]} Rc2 {[%emt 0:09:36]} 42. Rd1 {[%emt 0:
10:20]} (42. Rb1 $18) 42... Nc1 $14 {[%emt 0:09:39]} 43. b4 {[%emt 0:00:18]}
Ne2+ {[%emt 0:00:06]} 44. Kh2 {[%emt 0:00:35] Rb1 is the strong threat.} Rc4 $1
{[%emt 0:00:32]} 45. Rb1 {[%emt 0:05:52] Hoping for Ba1.} Nxd4 {[%emt 0:04:54]}
46. exd4 {[%emt 0:00:05] And now b5 would win. KR-KR} Kd7 {[%emt 0:01:08]} 47.
d5 $1 {[%emt 0:00:42]} Rd4 {[%emt 0:06:51]} 48. Rb2 {[%emt 0:00:15]} Rxd5 {
[%emt 0:00:17]} 49. b5 {[%emt 0:00:48]} (49. Kg1 $14) 49... a5 $1 $11 {[%emt 0:
00:00]} 50. g3 {[%emt 0:00:54]} Kc7 $2 {[%emt 0:02:50] White leaves nothing to
chance now.} (50... Rd4 $11 {and Black stays safe.}) 51. gxh4 $18 {[%emt 0:00:
00] Black must now prevent Rc2+.} gxh4 {[%emt 0:00:07]} 52. Rc2+ {[%emt 0:00:
00]} Kb7 $2 {[%emt 0:01:38]} (52... Kd6 {is a better defense.}) 53. Rc4 $1 {
[%emt 0:00:06]} Rd2+ {[%emt 0:00:29]} 54. Kg1 {[%emt 0:00:05]} Rb2 {[%emt 0:00:
00] [#]} 55. Kf1 $1 {[%emt 0:00:45]} ({Not} 55. Rxh4 Rb4 56. Rg4 f5 57. Rg7+
Kb6 $16) 55... Rb1+ $2 {[%emt 0:01:39]} (55... Rd2 56. Rxh4 Rh2 57. Rh7+ Kb8
58. Rh8+ Kb7 59. Rh7+ Kb8 60. Rh8+ Kb7) 56. Ke2 {[%emt 0:00:27]} Rb2+ {[%emt 0:
00:00]} 57. Ke3 {[%emt 0:00:40]} Rb3+ {[%emt 0:00:06]} 58. Kf4 {[%emt 0:00:37]}
Kb6 {[%emt 0:01:16]} 59. Kg4 {[%emt 0:01:17]} Rb4 {[%emt 0:01:55]} 60. Re4 {
[%emt 0:00:22]} Kc5 {[%emt 0:00:21]} 61. Kf5 {[%emt 0:00:23] Threatening mate
with Rxb4.} Rb3 {[%emt 0:00:14]} 62. Rf4 {[%emt 0:00:33]} Rb4 {[%emt 0:00:15] 
[#]} (62... Kd5 $18 63. Kxf6 Kd6) 63. Rxb4 $1 {[%emt 0:00:35] White mates.}
axb4 {[%emt 0:00:35]} 64. Ke4 {[%emt 0:00:06]} Kc4 {[%emt 0:01:13]} 65. b6 {
[%emt 0:00:10][%cal Yb5b6,Yb6b7]} b3 {[%emt 0:00:04]} 66. b7 {[%emt 0:00:00]
Weighted Error Value: White=0.22 (precise) /Black=0.44} 1-0

[Event "44th Chess Olympiad Women 2022"]
[Site "Chennai"]
[Date "2022.08.06"]
[Round "8.8"]
[White "Tokhirjonova, Gulrukhbegim"]
[Black "Movsesian, Julia"]
[Result "1/2-1/2"]
[WhiteElo "2329"]
[BlackElo "2291"]
[Annotator "RC"]
[PlyCount "56"]
[EventDate "2022.??.??"]
[TimeControl "60"]

1. e4 {[%emt 0:01:52]} e5 {[%emt 0:00:15]} 2. Nf3 {[%emt 0:00:36]} Nc6 {
[%emt 0:00:06]} 3. Bb5 {[%emt 0:00:29]} a6 {[%emt 0:00:09]} 4. Ba4 {[%emt 0:00:
00]} Nf6 {[%emt 0:00:52]} 5. Nc3 {[%emt 0:01:05]} b5 {[%emt 0:10:25]} 6. Bb3 {
[%emt 0:00:48]} Be7 {[%emt 0:00:16]} 7. d3 {[%emt 0:01:29]} O-O {[%emt 0:01:22]
} 8. O-O {[%emt 0:01:13]} d6 {[%emt 0:02:53]} 9. a3 {[%emt 0:01:12]} Bg4 {
[%emt 0:08:27]} 10. Be3 {[%emt 0:01:53]} Nd4 {[%emt 0:05:25]} 11. Bxd4 {
[%emt 0:01:18]} exd4 {[%emt 0:00:03]} 12. Ne2 {[%emt 0:07:12]} Bxf3 {[%emt 0:
00:00]} 13. gxf3 {[%emt 0:00:25]} Nh5 {[%emt 0:00:04]} 14. Bd5 {[%emt 0:06:57]}
c6 {[%emt 0:13:30]} 15. Bxc6 {[%emt 0:08:16]} Rc8 {[%emt 0:00:21]} 16. Bd5 {
[%emt 0:00:18]} Bg5 {[%emt 0:02:02]} 17. f4 {[%emt 0:12:15]} Nxf4 {[%emt 0:00:
00]} 18. Nxf4 {[%emt 0:00:41]} Bxf4 {[%emt 0:00:05]} 19. Qg4 {[%emt 0:00:12]}
Qf6 {[%emt 0:00:32]} 20. Bb3 {[%emt 0:13:23]} Rc5 {[%emt 0:00:26]} 21. h4 {
[%emt 0:02:43]} Re8 {[%emt 0:11:47]} 22. Kg2 {[%emt 0:05:48]} h5 {[%emt 0:00:
00]} 23. Qh3 {[%emt 0:03:22]} Rec8 {[%emt 0:01:26]} 24. Rh1 {[%emt 0:07:14]}
Qg6+ {[%emt 0:01:23]} 25. Kf1 {[%emt 0:03:36]} Qf6 {[%emt 0:00:34]} 26. Kg2 {
[%emt 0:01:14]} Qg6+ {[%emt 0:00:10]} 27. Kf1 {[%emt 0:00:37]} Qf6 {[%emt 0:00:
00]} 28. Kg2 {[%emt 0:00:25]} Qg6+ {[%emt 0:00:49]} 1/2-1/2